fUSD/lending_fUSD_20251201
["ID","MTS","AMOUNT","RATE_DAILY","PERIOD"]
[395225525,1764553842931,-510.9486006,0.00014504,2]
[395225526,1764553842941,-500.0,0.00014504,2]
[395225527,1764553842951,-500.0,0.00014504,2]
[395225528,1764553842960,-500.0,0.00014504,2]
[395225529,1764553842970,-515.20511315,0.00014504,2]
[395225530,1764553842981,-267.74423954,0.00014504,2]
[395225531,1764553842991,-502.35658979,0.00014504,2]
[395225532,1764553843000,-526.03784588,0.00014504,2]
[395225533,1764553843010,-500.0,0.00014504,2]
[395225534,1764553843019,-500.0,0.00014504,2]
[395225535,1764553843029,-500.0,0.00014504,2]
[395225536,1764553843038,-500.0,0.00014504,2]
[395225537,1764553843048,-519.80565924,0.00014504,2]
[395225538,1764553843057,-500.0,0.00014504,2]
[395225539,1764553843066,-386.00822049,0.00014504,2]
[395225540,1764553843076,-333.85230808,0.00014504,2]
[395225541,1764553843086,-1000.0,0.00014514,2]
[395225542,1764553843095,-151.0,0.00014521,2]
[395225543,1764553843105,-178.33733717,0.00014575,2]
[395225544,1764553843114,-1438.04,0.00014579,2]
[395225545,1764553843124,-10331.75112626,0.00014599,2]
[395225546,1764553843133,-5334.1441,0.00014599,2]
[395225547,1764553843142,-500.0,0.00014614,2]
[395225548,1764553843152,-200.0,0.00014614,2]
[395225549,1764553843161,-200.0,0.00014614,2]
[395225550,1764553843170,-500.0,0.00014716,2]
[395225551,1764553843179,-166.66,0.0001477,2]
[395225552,1764553843189,-600.0,0.00014795,2]
[395225553,1764553843199,-1006.36873465,0.00014839,2]
[395225555,1764553843208,-1438.04,0.00014853,2]
[395225556,1764553843217,-1310.85278819,0.00014889,2]
[395225557,1764553843228,-38395.38500068,0.00014899,2]
[395225558,1764553843237,-225.39616974,0.000149,2]
[395225559,1764553843247,-1000.0,0.00014921,2]
[395225560,1764553843256,-536.01756755,0.00014921,2]
[395225561,1764553843266,-1008.35390567,0.00014921,2]
[395225562,1764553843277,-507.34097889,0.00014921,2]
[395225563,1764553843286,-1001.00569167,0.00014921,2]
[395225564,1764553843296,-1009.2603075,0.00014921,2]
[395225565,1764553843306,-1000.0,0.00014921,2]
[395225566,1764553843316,-1000.0,0.00014921,2]
[395225567,1764553843325,-1000.0,0.00014921,2]
[395225569,1764553843336,-1000.0,0.00014921,2]
[395225571,1764553843347,-1000.0,0.00014921,2]
[395225574,1764553843356,-1000.0,0.00014921,2]
[395225577,1764553843365,-1000.0,0.00014921,2]
[395225579,1764553843375,-1000.0,0.00014921,2]
[395225588,1764553843678,-501.18603074,0.00014921,2]
[395225589,1764553843688,-159.45765875,0.00014921,2]
[395225590,1764553843698,-1000.0,0.00014921,2]
[395225591,1764553843707,-1000.0,0.00014921,2]
[395225592,1764553843717,-481.4168575,0.00014921,2]
[395225593,1764553843726,-1000.0,0.00014921,2]
[395225594,1764553843736,-1000.0,0.00014921,2]
[395225595,1764553843745,-1000.0,0.00014921,2]
[395225596,1764553843755,-1000.0,0.00014921,2]
[395225597,1764553843765,-500.8341776,0.00014921,2]
[395225598,1764553843775,-1000.0,0.00014921,2]
[395225599,1764553843784,-3012.1267,0.00014966,2]
[395225600,1764553843794,-173.216967,0.00015009,2]
[395225602,1764553843803,-500.0,0.00015009,2]
[395225604,1764553843813,-500.0,0.00015009,2]
[395225606,1764553843822,-500.0,0.00015009,2]
[395225608,1764553843831,-151.0,0.00015069,2]
[395225610,1764553843841,-1438.04,0.00015127,2]
[395225612,1764553843850,-500.0,0.00015162,2]
[395225613,1764553843861,-200.0,0.00015162,2]
[395225615,1764553843871,-200.0,0.00015162,2]
[395225617,1764553843880,-587.0,0.00015184,2]
[395225619,1764553843890,-2351.0,0.00015264,2]
[395225621,1764553843900,-150.0,0.00015288,2]
[395225623,1764553843910,-150.0,0.00015288,2]
[395225625,1764553843920,-206.00527742,0.00015288,2]
[395225627,1764553843930,-150.0,0.00015288,2]
[395225629,1764553843940,-150.0,0.00015288,2]
[395225631,1764553843949,-150.0,0.00015288,2]
[395225632,1764553843959,-150.0,0.00015288,2]
[395225633,1764553843969,-150.0,0.00015288,2]
[395225635,1764553843978,-150.0,0.00015288,2]
[395225637,1764553843988,-293.52544515,0.00015288,2]
[395225639,1764553843997,-150.0,0.00015288,2]
[395225641,1764553844012,-150.0,0.00015288,2]
[395225643,1764553844021,-150.0,0.00015288,2]
[395225645,1764553844030,-150.0,0.00015288,2]
[395225647,1764553844039,-190.82998658,0.00015288,2]
[395225649,1764553844049,-150.0,0.00015288,2]
[395225651,1764553844058,-150.0,0.00015288,2]
[395225653,1764553844068,-38395.38500068,0.00015299,2]
[395225655,1764553844077,-1600.0,0.00015304,2]
[395225656,1764553844087,-206.00527742,0.00015305,2]
[395225658,1764553844097,-293.52544515,0.00015305,2]
[395225660,1764553844108,-150.0,0.00015305,2]
[395225661,1764553844117,-150.0,0.00015308,2]
[395225662,1764553844126,-150.0,0.0001531,2]
[395225663,1764553844136,-150.0,0.00015312,2]
[395225664,1764553844145,-206.00527742,0.00015322,2]
[395225665,1764553844155,-293.52544515,0.00015322,2]
[395225666,1764553844165,-150.0,0.00015323,2]
[395225667,1764553844175,-150.0,0.00015328,2]
[395225668,1764553844184,-150.0,0.00015328,2]
[395225669,1764553844194,-150.0,0.00015333,2]
[395225670,1764553844205,-150.0,0.00015334,2]
[395225671,1764553844214,-150.0,0.00015336,2]
[395225672,1764553844224,-206.00527742,0.00015339,2]
[395225673,1764553844233,-293.52544515,0.00015339,2]
[395225674,1764553844243,-150.0,0.0001534,2]
[395225675,1764553844252,-600.0,0.00015342,2]
[395225676,1764553844262,-150.0,0.00015348,2]
[395225677,1764553844271,-150.0,0.00015348,2]
[395225678,1764553844280,-587.0,0.00015351,2]
[395225679,1764553844291,-1006.36873465,0.00015354,2]
[395225680,1764553844301,-150.0,0.00015356,2]
[395225681,1764553844311,-206.00527742,0.00015356,2]
[395225682,1764553844321,-293.52544515,0.00015356,2]
[395225683,1764553844331,-150.0,0.00015358,2]
[395225684,1764553844341,-150.0,0.00015359,2]
[395225685,1764553844350,-150.0,0.00015369,2]
[395225686,1764553844359,-150.0,0.00015369,2]
[395225687,1764553844368,-150.0,0.00015373,2]
[395225688,1764553844377,-206.00527742,0.00015373,2]
[395225689,1764553844386,-293.52544515,0.00015373,2]
[395225690,1764553844396,-150.0,0.00015375,2]
[395225691,1764553844405,-150.0,0.00015378,2]
[395225692,1764553844415,-150.0,0.00015379,2]
[395225693,1764553844424,-150.0,0.00015383,2]
[395225694,1764553844434,-150.0,0.00015389,2]
[395225695,1764553844445,-206.00527742,0.00015391,2]
[395225696,1764553844455,-293.52544515,0.00015391,2]
[395225697,1764553844464,-1310.85278819,0.00015392,2]
[395225698,1764553844474,-150.0,0.00015393,2]
[395225699,1764553844483,-150.0,0.00015401,2]
[395225700,1764553844493,-1438.04,0.00015401,2]
[395225701,1764553844502,-260.57168505,0.00015402,2]
[395225702,1764553844514,-150.0,0.00015407,2]
[395225703,1764553844523,-206.00527742,0.00015408,2]
[395225704,1764553844532,-293.52544515,0.00015408,2]
[395225705,1764553844541,-150.0,0.00015409,2]
[395225706,1764553844550,-150.0,0.00015409,2]
[395225707,1764553844559,-150.0,0.00015409,2]
[395225708,1764553844569,-150.0,0.00015409,2]
[395225709,1764553844578,-150.0,0.0001541,2]
[395225710,1764553844588,-150.0,0.00015424,2]
[395225711,1764553844597,-206.00527742,0.00015425,2]
[395225712,1764553844607,-293.52544515,0.00015425,2]
[395225713,1764553844617,-150.0,0.00015425,2]
[395225714,1764553844626,-150.0,0.00015428,2]
[395225715,1764553844635,-150.0,0.00015429,2]
[395225716,1764553844645,-150.0,0.00015429,2]
[395225717,1764553844654,-150.0,0.00015431,2]
[395225718,1764553844663,-206.00527742,0.00015442,2]
[395225719,1764553844673,-293.52544515,0.00015442,2]
[395225720,1764553844682,-500.0,0.00015444,2]
[395225721,1764553844691,-500.0,0.00015444,2]
[395225722,1764553844700,-500.0,0.00015444,2]
[395225723,1764553844710,-500.0,0.00015444,2]
[395225724,1764553844719,-500.0,0.00015444,2]
[395225725,1764553844729,-500.0,0.00015444,2]
[395225726,1764553844738,-500.0,0.00015444,2]
[395225727,1764553844748,-500.0,0.00015444,2]
[395225728,1764553844757,-150.0,0.00015445,2]
[395225729,1764553844766,-150.0,0.00015446,2]
[395225730,1764553844775,-150.0,0.00015449,2]
[395225731,1764553844784,-150.0,0.00015449,2]
[395225732,1764553844794,-150.0,0.00015455,2]
[395225733,1764553844803,-150.0,0.00015458,2]
[395225734,1764553844812,-206.00527742,0.00015459,2]
[395225735,1764553844821,-293.52544515,0.00015459,2]
[395225736,1764553844831,-150.0,0.00015463,2]
[395225737,1764553844840,-507.16168863,0.00015468,2]
[395225738,1764553844849,-1001.27287601,0.00015468,2]
[395225739,1764553844859,-1500.0,0.00015468,2]
[395225740,1764553844868,-1500.0,0.00015468,2]
[395225741,1764553844878,-1107.03585187,0.00015468,2]
[395225742,1764553844887,-1500.0,0.00015468,2]
[395225743,1764553844897,-1500.0,0.00015468,2]
[395225744,1764553844906,-458.41629171,0.00015468,2]
[395225745,1764553844916,-1000.87169947,0.00015468,2]
[395225746,1764553844927,-1500.0,0.00015468,2]
[395225747,1764553844936,-1078.50686521,0.00015468,2]
[395225748,1764553844946,-1002.96420978,0.00015468,2]
[395225749,1764553844955,-415.43921071,0.00015468,2]
[395225750,1764553844965,-1500.0,0.00015468,2]
[395225751,1764553844974,-1500.0,0.00015468,2]
[395225752,1764553844984,-463.74871303,0.00015468,2]
[395225753,1764553844994,-150.0,0.00015469,2]
[395225754,1764553845003,-150.0,0.0001547,2]
[395225755,1764553845012,-150.0,0.0001547,2]
[395225756,1764553845022,-150.0,0.00015471,2]
[395225757,1764553845032,-206.00527742,0.00015476,2]
[395225758,1764553845041,-293.52544515,0.00015476,2]
[395225759,1764553845052,-150.0,0.00015479,2]
[395225760,1764553845062,-150.0,0.0001548,2]
[395225761,1764553845071,-150.0,0.0001549,2]
[395225762,1764553845081,-150.0,0.0001549,2]
[395225763,1764553845090,-150.0,0.00015492,2]
[395225764,1764553845100,-206.00527742,0.00015494,2]
[395225765,1764553845110,-293.52544515,0.00015494,2]
[395225766,1764553845119,-150.0,0.00015498,2]
[395225767,1764553845129,-150.0,0.000155,2]
[395225768,1764553845138,-150.0,0.00015503,2]
[395225769,1764553845148,-150.0,0.0001551,2]
[395225770,1764553845158,-206.00527742,0.00015511,2]
[395225771,1764553845168,-293.52544515,0.00015511,2]
[395225772,1764553845177,-150.0,0.00015514,2]
[395225773,1764553845186,-150.0,0.00015515,2]
[395225774,1764553845196,-150.0,0.00015517,2]
[395225775,1764553845206,-433.0,0.00015521,2]
[395225776,1764553845215,-150.0,0.00015527,2]
[395225777,1764553845224,-206.00527742,0.00015528,2]
[395225778,1764553845234,-293.52544515,0.00015528,2]
[395225779,1764553845243,-150.0,0.0001553,2]
[395225780,1764553845252,-150.0,0.0001553,2]
[395225781,1764553845262,-150.0,0.0001553,2]
[395225782,1764553845272,-150.0,0.0001553,2]
[395225783,1764553845282,-150.0,0.00015533,2]
[395225784,1764553845292,-150.0,0.00015537,2]
[395225785,1764553845303,-150.0,0.00015542,2]
[395225786,1764553845312,-206.00527742,0.00015545,2]
[395225787,1764553845322,-293.52544515,0.00015545,2]
[395225788,1764553845332,-150.0,0.0001555,2]
[395225789,1764553845342,-150.0,0.00015551,2]
[395225790,1764553845352,-150.0,0.00015551,2]
[395225791,1764553845362,-150.0,0.00015559,2]
[395225792,1764553845372,-206.00527742,0.00015562,2]
[395225793,1764553845382,-293.52544515,0.00015562,2]
[395225794,1764553845391,-150.0,0.00015563,2]
[395225795,1764553845401,-150.0,0.00015568,2]
[395225796,1764553845410,-150.0,0.00015571,2]
[395225797,1764553845420,-150.0,0.00015571,2]
[395225798,1764553845430,-150.0,0.00015571,2]
[395225799,1764553845444,-150.0,0.00015575,2]
[395225800,1764553845454,-206.00527742,0.00015579,2]
[395225801,1764553845463,-293.52544515,0.00015579,2]
[395225802,1764553845472,-150.0,0.00015582,2]
[395225803,1764553845485,-150.0,0.00015585,2]
[395225804,1764553845495,-150.0,0.00015591,2]
[395225805,1764553845504,-150.0,0.00015591,2]
[395225806,1764553845514,-206.00527742,0.00015597,2]
[395225807,1764553845524,-293.52544515,0.00015597,2]
[395225808,1764553845534,-150.0,0.00015599,2]
[395225809,1764553845543,-150.0,0.00015603,2]
[395225810,1764553845553,-150.0,0.00015605,2]
[395225811,1764553845563,-150.0,0.00015609,2]
[395225812,1764553845573,-150.0,0.00015611,2]
[395225813,1764553845583,-150.0,0.00015611,2]
[395225814,1764553845592,-206.00527742,0.00015614,2]
[395225815,1764553845602,-293.52544515,0.00015614,2]
[395225816,1764553845611,-151.0,0.00015617,2]
[395225817,1764553845621,-150.0,0.0001562,2]
[395225818,1764553845631,-150.0,0.00015623,2]
[395225819,1764553845640,-150.0,0.00015627,2]
[395225820,1764553845649,-150.0,0.00015627,2]
[395225821,1764553845658,-150.0,0.00015627,2]
[395225822,1764553845668,-206.00527742,0.00015631,2]
[395225823,1764553845677,-293.52544515,0.00015631,2]
[395225824,1764553845686,-150.0,0.00015631,2]
[395225825,1764553845695,-150.0,0.00015638,2]
[395225826,1764553845705,-150.0,0.00015647,2]
[395225827,1764553845714,-206.00527742,0.00015648,2]
[395225828,1764553845723,-293.52544515,0.00015648,2]
[395225829,1764553845734,-150.0,0.0001565,2]
[395225830,1764553845743,-150.0,0.00015652,2]
[395225831,1764553845753,-150.0,0.00015652,2]
[395225832,1764553845762,-150.0,0.00015652,2]
[395225833,1764553845772,-150.0,0.00015652,2]
[395225834,1764553845782,-150.0,0.00015655,2]
[395225835,1764553845791,-150.0,0.00015655,2]
[395225836,1764553845800,-206.00527742,0.00015665,2]
[395225837,1764553845810,-293.52544515,0.00015665,2]
[395225838,1764553845819,-150.0,0.0001567,2]
[395225839,1764553845828,-150.0,0.00015672,2]
[395225840,1764553845839,-150.0,0.00015673,2]
[395225841,1764553845848,-150.0,0.00015673,2]
[395225842,1764553845859,-1438.04,0.00015675,2]
[395225843,1764553845868,-206.00527742,0.00015682,2]
[395225844,1764553845878,-293.52544515,0.00015682,2]
[395225845,1764553845888,-150.0,0.0001569,2]
[395225846,1764553845898,-150.0,0.00015692,2]
[395225847,1764553845907,-150.0,0.00015692,2]
[395225848,1764553845916,-150.0,0.00015694,2]
[395225849,1764553845927,-150.0,0.00015695,2]
[395225850,1764553845936,-38395.38500068,0.00015699,2]
[395225851,1764553845946,-206.00527742,0.00015699,2]
[395225852,1764553845956,-293.52544515,0.00015699,2]
[395225853,1764553845965,-1197.77496978,0.000157,2]
[395225854,1764553845974,-150.0,0.00015701,2]
[395225855,1764553845984,-150.0,0.00015708,2]
[395225856,1764553845994,-500.0,0.0001571,2]
[395225857,1764553846004,-200.0,0.0001571,2]
[395225858,1764553846106,-200.0,0.0001571,2]
[395225859,1764553846115,-150.0,0.00015712,2]
[395225860,1764553846125,-150.0,0.00015712,2]
[395225861,1764553846134,-150.0,0.00015712,2]
[395225862,1764553846143,-150.0,0.00015712,2]
[395225863,1764553846152,-150.0,0.00015712,2]
[395225864,1764553846162,-206.00527742,0.00015717,2]
[395225865,1764553846171,-293.52544515,0.00015717,2]
[395225866,1764553846181,-150.0,0.00015718,2]
[395225868,1764553846190,-150.0,0.00015718,2]
[395225869,1764553846199,-150.0,0.00015725,2]
[395225871,1764553846213,-150.0,0.00015733,2]
[395225872,1764553846222,-150.0,0.00015733,2]
[395225873,1764553846232,-206.00527742,0.00015734,2]
[395225874,1764553846242,-293.52544515,0.00015734,2]
[395225875,1764553846251,-150.0,0.00015741,2]
[395225876,1764553846261,-150.0,0.00015742,2]
[395225877,1764553846270,-150.0,0.00015743,2]
[395225878,1764553846279,-150.0,0.00015747,2]
[395225879,1764553846288,-206.00527742,0.00015751,2]
[395225880,1764553846298,-293.52544515,0.00015751,2]
[395225881,1764553846307,-150.0,0.00015753,2]
[395225882,1764553846316,-150.0,0.0001576,2]
[395225883,1764553846326,-150.0,0.00015763,2]
[395225884,1764553846336,-150.0,0.00015766,2]
[395225885,1764553846346,-206.00527742,0.00015768,2]
[395225886,1764553846355,-293.52544515,0.00015768,2]
[395225887,1764553846364,-150.0,0.00015773,2]
[395225888,1764553846373,-150.0,0.00015773,2]
[395225889,1764553846382,-150.0,0.00015773,2]
[395225890,1764553846392,-150.0,0.00015773,2]
[395225891,1764553846401,-150.0,0.00015778,2]
[395225892,1764553846411,-206.00527742,0.00015785,2]
[395225893,1764553846420,-293.52544515,0.00015785,2]
[395225894,1764553846432,-150.0,0.00015786,2]
[395225895,1764553846442,-150.0,0.0001579,2]
[395225896,1764553846452,-150.0,0.00015793,2]
[395225897,1764553846461,-150.0,0.00015793,2]
[395225898,1764553846471,-150.0,0.00015796,2]
[395225899,1764553846480,-150.0,0.00015797,2]
[395225900,1764553846489,-206.00527742,0.00015802,2]
[395225901,1764553846498,-293.52544515,0.00015802,2]
[395225902,1764553846509,-150.0,0.00015809,2]
[395225903,1764553846519,-150.0,0.00015813,2]
[395225904,1764553846529,-150.0,0.00015813,2]
[395225905,1764553846538,-150.0,0.00015813,2]
[395225906,1764553846547,-150.0,0.00015814,2]
[395225907,1764553846557,-206.00527742,0.0001582,2]
[395225908,1764553846566,-293.52544515,0.0001582,2]
[395225909,1764553846575,-150.0,0.00015831,2]
[395225910,1764553846584,-150.0,0.00015831,2]
[395225911,1764553846594,-150.0,0.00015834,2]
[395225912,1764553846603,-150.0,0.00015834,2]
[395225913,1764553846614,-206.00527742,0.00015837,2]
[395225914,1764553846623,-293.52544515,0.00015837,2]
[395225915,1764553846632,-150.0,0.00015838,2]
[395225916,1764553846641,-150.0,0.00015839,2]
[395225917,1764553846650,-150.0,0.00015848,2]
[395225918,1764553846659,-206.00527742,0.00015854,2]
[395225919,1764553846669,-150.0,0.00015854,2]
[395225920,1764553846678,-150.0,0.00015854,2]
[395225921,1764553846687,-293.52544515,0.00015854,2]
[395225922,1764553846696,-150.0,0.00015854,2]
[395225923,1764553846706,-150.0,0.00015854,2]
[395225924,1764553846715,-150.0,0.00015854,2]
[395225925,1764553846724,-500.0,0.0001586,2]
[395225926,1764553846733,-150.0,0.00015862,2]
[395225927,1764553846742,-150.0,0.00015866,2]
[395225928,1764553846751,-1006.36873465,0.00015869,2]
[395225929,1764553846761,-206.00527742,0.00015871,2]
[395225930,1764553846770,-293.52544515,0.00015871,2]
[395225931,1764553846780,-150.0,0.00015874,2]
[395225932,1764553846789,-150.0,0.00015877,2]
[395225934,1764553846799,-684.0,0.0001588,2]
[395225936,1764553846809,-150.0,0.00015882,2]
[395225938,1764553846818,-150.0,0.00015883,2]
[395225940,1764553846827,-150.0,0.00015884,2]
[395225942,1764553846836,-150.0,0.00015886,2]
[395225944,1764553846845,-206.00527742,0.00015888,2]
[395225946,1764553846854,-293.52544515,0.00015888,2]
[395225948,1764553846864,-600.0,0.0001589,2]
[395225950,1764553846873,-150.0,0.00015894,2]
[395225952,1764553846882,-150.0,0.00015894,2]
[395225953,1764553846891,-150.0,0.00015894,2]
[395225955,1764553846900,-150.0,0.00015894,2]
[395225956,1764553846910,-1310.85278819,0.00015895,2]
[395225958,1764553846919,-150.0,0.00015899,2]
[395225960,1764553846929,-1720.81204682,0.000159,2]
[395225962,1764553846938,-1720.81204677,0.000159,2]
[395225964,1764553846947,-1720.81204677,0.000159,2]
[395225966,1764553846957,-150.0,0.00015901,2]
[395225968,1764553846966,-206.00527742,0.00015905,2]
[395225970,1764553846975,-293.52544515,0.00015905,2]
[395225972,1764553846984,-150.0,0.0001591,2]
[395225974,1764553846993,-150.0,0.00015915,2]
[395225976,1764553847002,-150.0,0.00015918,2]
[395225977,1764553847012,-150.0,0.00015922,2]
[395225978,1764553847021,-206.00527742,0.00015923,2]
[395225979,1764553847030,-293.52544515,0.00015923,2]
[395225980,1764553847040,-150.0,0.00015925,2]
[395225981,1764553847049,-150.0,0.0001593,2]
[395225982,1764553847057,-684.0,0.00015932,2]
[395225983,1764553847067,-150.0,0.00015934,2]
[395225984,1764553847076,-150.0,0.00015935,2]
[395225985,1764553847085,-150.0,0.00015935,2]
[395225986,1764553847094,-150.0,0.00015936,2]
[395225987,1764553847103,-206.00527742,0.0001594,2]
[395225988,1764553847113,-293.52544515,0.0001594,2]
[395225989,1764553847123,-150.0,0.00015944,2]
[395225990,1764553847132,-1438.04,0.00015949,2]
[395225991,1764553847141,-150.0,0.00015953,2]
[395225992,1764553847150,-150.0,0.00015955,2]
[395225993,1764553847160,-150.0,0.00015955,2]
[395225994,1764553847169,-206.00527742,0.00015957,2]
[395225995,1764553847178,-293.52544515,0.00015957,2]
[395225996,1764553847188,-150.0,0.00015958,2]
[395225997,1764553847197,-150.0,0.00015967,2]
[395225998,1764553847206,-150.0,0.00015967,2]
[395225999,1764553847215,-150.0,0.00015967,2]
[395226000,1764553847224,-150.0,0.00015971,2]
[395226001,1764553847233,-206.00527742,0.00015974,2]
[395226002,1764553847242,-293.52544515,0.00015974,2]
[395226003,1764553847251,-150.0,0.00015975,2]
[395226004,1764553847259,-150.0,0.00015975,2]
[395226005,1764553847268,-150.0,0.00015976,2]
[395226006,1764553847277,-150.0,0.00015981,2]
[395226007,1764553847286,-150.0,0.00015988,2]
[395226008,1764553847295,-150.0,0.0001599,2]
[395226009,1764553847305,-206.00527742,0.00015991,2]
[395226010,1764553847314,-293.52544515,0.00015991,2]
[395226011,1764553847323,-150.0,0.00015995,2]
[395226012,1764553847331,-150.0,0.00015995,2]
[395226013,1764553847340,-507.32385656,0.00015999,2]
[395226014,1764553847349,-509.8652975,0.00015999,2]
[395226015,1764553847358,-500.0,0.00015999,2]
[395226016,1764553847367,-500.0,0.00015999,2]
[395226017,1764553847376,-500.0,0.00015999,2]
[395226018,1764553847385,-500.0,0.00015999,2]
[395226019,1764553847394,-500.0,0.00015999,2]
[395226020,1764553847403,-500.0,0.00015999,2]
[395226021,1764553847412,-2000.0,0.00016,2]
[395226022,1764553847422,-150.0,0.00016005,2]
[395226023,1764553847432,-150.0,0.00016006,2]
[395226024,1764553847444,-206.00527742,0.00016008,2]
[395226025,1764553847454,-293.52544515,0.00016008,2]
[395226026,1764553847463,-150.0,0.00016012,2]
[395226027,1764553847473,-150.0,0.00016016,2]
[395226028,1764553847482,-150.0,0.00016016,2]
[395226029,1764553847491,-150.0,0.00016016,2]
[395226030,1764553847501,-150.0,0.00016016,2]
[395226031,1764553847510,-2000.0,0.00016016,2]
[395226032,1764553847519,-1195.52666433,0.00016016,2]
[395226033,1764553847529,-2005.67913008,0.00016016,2]
[395226034,1764553847538,-501.51277925,0.00016016,2]
[395226035,1764553847548,-2000.0,0.00016016,2]
[395226036,1764553847558,-2000.0,0.00016016,2]
[395226037,1764553847567,-2000.0,0.00016016,2]
[395226038,1764553847577,-150.0,0.00016022,2]
[395226039,1764553847586,-150.0,0.00016023,2]
[395226040,1764553847595,-206.00527742,0.00016025,2]
[395226041,1764553847605,-293.52544515,0.00016025,2]
[395226042,1764553847614,-150.0,0.00016029,2]
[395226043,1764553847623,-150.0,0.00016035,2]
[395226044,1764553847633,-150.0,0.00016036,2]
[395226045,1764553847643,-150.0,0.00016041,2]
[395226046,1764553847652,-206.00527742,0.00016043,2]
[395226047,1764553847661,-293.52544515,0.00016043,2]
[395226048,1764553847671,-484.48020322,0.00016047,2]
[395226049,1764553847680,-10000.0,0.00016049,2]
[395226050,1764553847689,-150.0,0.00016052,2]
[395226051,1764553847698,-150.0,0.00016053,2]
[395226052,1764553847707,-150.0,0.00016056,2]
[395226053,1764553847717,-150.0,0.00016056,2]
[395226054,1764553847726,-428.46,0.00016058,2]
[395226055,1764553847736,-432.2,0.00016058,2]
[395226056,1764553847745,-418.08,0.00016058,2]
[395226057,1764553847754,-418.08,0.00016058,2]
[395226058,1764553847763,-150.0,0.00016058,2]
[395226059,1764553847772,-150.0,0.00016058,2]
[395226060,1764553847782,-206.00527742,0.0001606,2]
[395226061,1764553847791,-293.52544515,0.0001606,2]
[395226062,1764553847801,-150.0,0.00016068,2]
[395226063,1764553847810,-150.0,0.00016076,2]
[395226064,1764553847819,-150.0,0.00016076,2]
[395226065,1764553847828,-150.0,0.00016076,2]
[395226066,1764553847837,-206.00527742,0.00016077,2]
[395226067,1764553847847,-293.52544515,0.00016077,2]
[395226068,1764553847856,-150.0,0.00016077,2]
[395226069,1764553847866,-150.0,0.0001608,2]
[395226070,1764553847875,-150.0,0.00016093,2]
[395226071,1764553847885,-206.00527742,0.00016094,2]
[395226072,1764553847894,-293.52544515,0.00016094,2]
[395226073,1764553847904,-150.0,0.00016097,2]
[395226074,1764553847913,-150.0,0.00016097,2]
[395226075,1764553847922,-151.0,0.00016099,2]
[395226076,1764553847931,-151.0,0.00016099,2]
[395226077,1764553847940,-151.0,0.00016099,2]
[395226078,1764553847949,-151.0,0.00016099,2]
[395226079,1764553847959,-151.0,0.00016099,2]
[395226080,1764553847968,-151.0,0.00016099,2]
[395226081,1764553847978,-151.0,0.00016099,2]
[395226082,1764553847988,-38395.38500068,0.000161,2]
[395226083,1764553847997,-150.0,0.00016101,2]
[395226084,1764553848006,-150.0,0.00016103,2]
[395226085,1764553848016,-150.0,0.00016111,2]
[395226086,1764553848025,-206.00527742,0.00016111,2]
[395226087,1764553848034,-293.52544515,0.00016111,2]
[395226088,1764553848043,-150.0,0.00016114,2]
[395226089,1764553848053,-175.59,0.00016116,2]
[395226090,1764553848062,-9999.99,0.00016116,2]
[395226091,1764553848072,-150.0,0.00016117,2]